bitfinex/quotes_SOLUSD_20241107
["timestamp","ask_amount","ask_price","bid_price","bid_amount"]
[1730943140181,0.12549,190.21,190.12,0.1]
[1730943140378,26.78221298,190.13,190.12,0.1]
[1730943140591,26.78221298,190.13,190.11,0.1]
[1730943140790,26.78221298,190.12,190.11,0.1]
[1730943140966,26.78221298,190.12,190.1,0.1]
[1730943141168,26.78221298,190.11,190.1,0.1]
[1730943143674,11.98284615,190.24,190.1,0.1]
[1730943143675,5.48864615,190.24,190.21,0.1]
[1730943143984,26.78221298,190.22,190.19,0.1]
[1730943144184,26.78221298,190.2,190.19,0.1]
[1730943145869,26.78221298,190.21,190.2,0.1]
[1730943146073,26.78221298,190.22,190.21,0.1]
[1730943147876,5.48617883,190.28,190.22,0.1]
[1730943148199,5.48617883,190.28,190.21,0.1]
[1730943149301,27.91828586,190.22,190.21,0.1]
[1730943151180,8.356572,190.38,190.26,0.1]
[1730943151379,27.91828586,190.27,190.26,0.1]
[1730943151690,27.91828586,190.27,190.25,0.1]
[1730943151886,0.1,190.34,190.24,0.1]
[1730943152097,27.91828586,190.25,190.23,0.1]
[1730943152316,27.91828586,190.24,190.23,0.1]
[1730943152801,27.91828586,190.24,190.21,0.1]
[1730943153002,27.91828586,190.22,190.17,0.1]
[1730943153184,27.91828586,190.18,190.17,0.1]
[1730943153382,0.12549,190.29,190.18,0.1]
[1730943153588,21.035363,190.35,190.23,0.1]
[1730943153807,3.90079591,190.34,190.25,0.1]
[1730943154098,5.48513695,190.37,190.26,0.1]
[1730943154307,5.48513695,190.37,190.28,0.1]
[1730943154607,0.12549,190.36,190.28,0.1]
[1730943154780,0.12549,190.36,190.25,0.1]
[1730943154982,0.22549,190.36,190.25,0.1]
[1730943155279,0.12549,190.36,190.24,0.1]
[1730943155479,27.91828586,190.25,190.24,0.1]
[1730943155710,27.91828586,190.25,190.21,0.1]
[1730943155898,27.91828586,190.22,190.17,0.1]
[1730943156100,27.91828586,190.18,190.17,0.1]
[1730943156702,27.91828586,190.18,190.15,0.1]
[1730943156909,27.91828586,190.19,190.16,0.1]
[1730943157079,27.91828586,190.17,190.14,0.1]
[1730943157278,27.91828586,190.15,190.14,0.1]
[1730943158390,27.91828586,190.15,190.13,0.1]
[1730943158598,27.91828586,190.14,190.13,0.1]
[1730943158794,27.91828586,190.14,190.12,0.1]
[1730943159293,27.91828586,190.13,190.12,0.1]
[1730943161498,0.22549,190.24,190.15,0.1]
[1730943161801,27.91828586,190.16,190.15,0.1]
[1730943162202,27.91828586,190.16,190.13,0.1]
[1730943162410,27.91828586,190.14,190.13,0.1]
[1730943164417,27.91828586,190.14,190.12,0.1]
[1730943164621,27.91828586,190.19,190.13,0.1]
[1730943165201,27.91828586,190.19,190.12,0.1]
[1730943165202,27.91828586,190.14,190.12,0.1]
[1730943165404,27.91828586,190.13,190.12,0.1]
[1730943166395,27.91828586,190.14,190.13,0.1]
[1730943166603,27.91828586,190.15,190.13,0.1]
[1730943166796,27.91828586,190.15,190.14,0.1]
[1730943167090,5.48870391,190.23,190.22,0.1]
[1730943167327,5.48870391,190.23,190.16,0.1]
[1730943167328,27.91828586,190.26,190.25,0.1]
[1730943167523,27.91828586,190.26,190.22,0.1]
[1730943167722,5.58550979,190.32,190.22,0.1]
[1730943167903,0.1,190.31,190.22,0.1]
[1730943168094,27.91828586,190.23,190.22,0.1]
[1730943170301,27.91828586,190.23,190.2,0.1]
[1730943170501,27.91828586,190.21,190.2,0.1]
[1730943171211,27.91828586,190.21,190.19,0.1]
[1730943171421,27.91828586,190.2,190.19,0.1]
[1730943171826,27.91828586,190.2,190.18,0.1]
[1730943172000,0.1,190.28,190.17,0.1]
[1730943172001,27.91828586,190.19,190.17,0.1]
[1730943172197,27.91828586,190.18,190.17,0.1]
[1730943173525,27.91828586,190.18,190.15,0.1]
[1730943173830,27.91828586,190.16,190.15,0.1]
[1730943174633,27.91828586,190.16,190.14,0.1]
[1730943174802,27.91828586,190.15,190.13,0.1]
[1730943175002,27.91828586,190.14,190.13,0.1]
[1730943176644,27.91828586,190.15,190.13,0.1]
[1730943176927,27.91828586,190.14,190.13,0.1]
[1730943180322,27.91828586,190.14,190.06,0.1]
[1730943180323,27.91828586,190.15,190.14,0.1]
[1730943180515,27.91828586,190.17,190.16,0.1]
[1730943180722,28.01828586,190.3,190.18,0.1]
[1730943180926,0.1,190.25,190.16,0.1]
[1730943181223,0.12549,190.23,190.17,0.1]
[1730943181730,5.48810952,190.29,190.05,0.1]
[1730943181731,0.1,190.24,190.16,0.1]
[1730943182028,0.1,190.24,190.05,0.1]
[1730943182029,27.91828586,190.17,190.14,0.1]
[1730943182338,27.91828586,190.15,190.14,0.1]
[1730943184716,27.91828586,190.16,190.15,0.1]
[1730943187532,27.91828586,190.16,190.03,20.0]
[1730943187533,17.46286173,190.16,190.13,0.1]
[1730943187742,0.12549,190.18,190.14,0.1]
[1730943188030,17.46286173,190.19,190.15,0.1]
[1730943188438,17.46286173,190.16,190.15,0.1]
[1730943188610,17.46286173,190.16,190.14,0.1]
[1730943188820,17.46286173,190.15,190.14,0.1]
[1730943190140,0.1,190.13,189.95,1.32365549]
[1730943190316,0.1,190.13,189.9,9.4784]
[1730943190317,17.46286173,189.96,189.9,9.4784]
[1730943190514,17.46286173,189.97,189.9,23.80126173]
[1730943190937,17.46286173,190.04,189.96,17.46286173]
[1730943191115,17.46286173,190.02,189.95,17.46286173]
[1730943191320,17.46286173,190.02,189.9,6.1384]
[1730943191321,17.46286173,189.99,189.91,17.46286173]
[1730943191518,0.1,190.09,189.9,34.1205874]
[1730943191736,0.22549,190.1,189.9,6.1384]
[1730943192042,27.9821874,189.98,189.91,27.9821874]
[1730943192420,27.9821874,189.97,189.91,27.9821874]
[1730943192825,27.9821874,189.96,189.9,6.1384]
[1730943193022,28.2076774,190.08,189.9,6.1384]
[1730943193023,27.9821874,189.94,189.9,6.1384]
[1730943193223,27.9821874,189.91,189.85,27.9821874]
[1730943193538,27.9821874,189.89,189.84,12.09984934]
[1730943193714,27.9821874,189.89,189.84,12.19984934]
[1730943193921,27.9821874,189.91,189.84,40.18203674]
[1730943194333,27.9821874,189.91,189.85,27.9821874]
[1730943194548,27.9821874,189.94,189.87,27.9821874]
[1730943194720,27.9821874,189.93,189.86,27.9821874]
[1730943194917,27.9821874,189.9,189.84,40.08203674]
[1730943195231,27.9821874,189.92,189.85,27.9821874]
[1730943195633,27.9821874,189.91,189.85,27.9821874]
[1730943195842,27.9821874,189.92,189.85,27.9821874]
[1730943196161,27.9821874,189.91,189.84,40.08203674]
[1730943196735,27.9821874,189.87,189.84,5.49294934]
[1730943197045,27.9821874,189.86,189.84,5.49294934]
[1730943197374,27.9821874,189.88,189.85,0.70921986]
[1730943197651,27.9821874,189.92,189.85,28.69140726]
[1730943198230,27.9821874,189.97,189.85,28.69140726]
[1730943198231,27.9821874,189.91,189.85,28.69140726]
[1730943198430,27.9821874,189.89,189.85,0.70921986]
[1730943198660,27.9821874,189.88,189.85,0.70921986]
[1730943199040,27.9821874,189.89,189.85,0.70921986]
[1730943199367,28.00887711,189.9,189.85,0.70921986]
[1730943199567,28.00887711,189.89,189.85,0.70921986]
[1730943199861,28.00887711,189.9,189.85,0.70921986]
[1730943200060,28.00887711,189.89,189.85,0.70921986]
[1730943200735,28.00887711,189.88,189.85,0.70921986]
[1730943201939,12.04110575,189.96,189.85,0.70921986]
[1730943201940,28.13436711,189.87,189.85,0.70921986]
[1730943202132,28.00887711,189.86,189.85,0.70921986]
[1730943202346,28.00887711,189.87,189.85,0.70921986]
[1730943203262,28.13436711,189.86,189.85,0.70921986]
[1730943205067,56.14324422,189.86,189.85,0.70921986]
[1730943206539,28.00887711,189.86,189.85,0.70921986]
[1730943206745,56.01775422,189.86,189.85,0.70921986]
[1730943207071,28.13436711,189.86,189.85,0.70921986]
[1730943208255,56.14324422,189.86,189.85,0.70921986]
[1730943209846,28.00887711,189.86,189.85,0.70921986]
[1730943210042,28.13436711,189.86,189.85,0.70921986]
[1730943210444,28.00887711,189.86,189.85,0.70921986]
[1730943210659,28.13436711,189.86,189.85,0.70921986]
[1730943211268,28.00887711,189.86,189.85,0.70921986]
[1730943211569,28.13436711,189.86,189.85,0.70921986]
[1730943212277,0.12549,189.85,189.77,0.5876006]
[1730943212458,28.00887711,189.78,189.77,0.5876006]
[1730943213046,0.12549,189.89,189.77,0.5876006]
[1730943213248,28.16918209,189.78,189.77,0.5876006]
[1730943213449,17.65652557,189.78,189.77,0.5876006]
[1730943218772,0.12549,189.77,189.67,6.3351]
[1730943218970,17.53103557,189.71,189.67,6.3351]
[1730943219776,17.53103557,189.71,189.68,23.776884]
[1730943220483,17.53103557,189.71,189.67,6.3351]
[1730943220484,17.53103557,189.7,189.67,6.3351]
[1730943220671,17.53103557,189.69,189.67,6.3351]
[1730943220983,17.53103557,189.69,189.67,5.8351]
[1730943221290,17.53103557,189.68,189.65,20.0]
[1730943221457,17.53103557,189.66,189.62,0.1]
[1730943221655,17.53103557,189.67,189.62,0.1]
[1730943221884,17.53103557,189.7,189.63,17.53103557]
[1730943222065,17.53103557,189.72,189.66,17.53103557]
[1730943222401,17.53103557,189.74,189.67,17.53103557]
[1730943222684,17.53103557,189.74,189.68,23.776884]
[1730943223277,17.53103557,189.73,189.68,23.776884]
[1730943223485,17.53103557,189.73,189.67,23.776884]
[1730943223683,17.53103557,189.73,189.67,23.876884]
[1730943224071,17.53103557,189.73,189.67,23.776884]
[1730943224376,17.53103557,189.71,189.66,23.776884]
[1730943224579,17.53103557,189.69,189.65,23.776884]
[1730943225085,17.53103557,189.69,189.64,6.3258]
[1730943225263,17.53103557,189.7,189.64,6.3258]
[1730943225464,17.53103557,189.7,189.64,23.85683557]
[1730943225774,17.03103557,189.7,189.64,23.95683557]
[1730943225959,17.53103557,189.69,189.64,6.3258]
[1730943226354,17.53103557,189.69,189.65,23.776884]
[1730943227290,17.53103557,189.7,189.65,23.776884]
[1730943228083,17.53103557,189.71,189.65,23.776884]
[1730943228395,17.53103557,189.7,189.65,23.776884]
[1730943228967,17.53103557,189.69,189.65,23.776884]
[1730943229565,17.53103557,189.7,189.65,23.776884]
[1730943230782,17.53103557,189.66,189.59,0.1]
[1730943231092,17.53103557,189.65,189.59,0.1]
[1730943231701,17.53103557,189.64,189.59,0.1]
[1730943232076,17.53103557,189.64,189.59,20.1]
[1730943232589,17.53103557,189.64,189.58,15.9435006]
[1730943232779,17.53103557,189.63,189.59,0.1]
[1730943232977,17.53103557,189.63,189.58,15.9435006]
[1730943233180,17.53103557,189.63,189.59,0.1]
[1730943233584,17.53103557,189.63,189.58,15.9435006]
[1730943233783,17.53103557,189.63,189.59,0.1]
[1730943234183,17.53103557,189.64,189.59,0.1]
[1730943234593,17.53103557,189.65,189.59,41.40791957]
[1730943235302,0.12549,189.74,189.59,23.876884]
[1730943235303,17.53103557,189.64,189.59,23.876884]
[1730943235485,17.53103557,189.64,189.59,23.776884]
[1730943235800,17.53103557,189.64,189.59,23.876884]
[1730943236297,17.53103557,189.67,189.61,17.53103557]
[1730943236511,17.53103557,189.69,189.63,23.776884]
[1730943236997,17.53103557,189.68,189.63,23.776884]
[1730943237196,17.53103557,189.67,189.62,23.876884]
[1730943237584,17.53103557,189.67,189.63,0.1]
[1730943237774,17.53103557,189.68,189.63,0.1]
[1730943238377,17.53103557,189.68,189.62,23.776884]
[1730943238573,17.53103557,189.68,189.63,0.1]
[1730943238777,17.53103557,189.75,189.59,20.1]
[1730943238778,17.53103557,189.65,189.59,20.1]
[1730943238990,17.53103557,189.65,189.59,37.63103557]
[1730943239194,17.53103557,189.65,189.59,20.1]
[1730943239513,17.53103557,189.66,189.61,0.1]
[1730943239684,17.53103557,189.66,189.6,17.53103557]
[1730943239880,17.53103557,189.66,189.61,0.1]
[1730943240080,17.53103557,189.67,189.61,23.876884]
[1730943240299,17.53103557,189.7,189.63,41.40791957]
[1730943240503,17.53103557,189.75,189.7,23.776884]
[1730943240701,17.53103557,189.76,189.7,41.30791957]
[1730943240900,17.53103557,189.75,189.7,23.776884]
[1730943241407,17.53103557,189.81,189.75,23.776884]
[1730943241619,5.49946146,189.85,189.75,41.30791957]
[1730943241780,6.1574,189.9,189.75,23.776884]
[1730943241781,17.53103557,189.81,189.75,23.776884]
[1730943242177,17.53103557,189.82,189.77,23.776884]
[1730943242413,6.1574,189.9,189.77,23.776884]
[1730943242581,17.53103557,189.84,189.78,17.53103557]
[1730943242777,17.53103557,189.84,189.79,23.776884]
[1730943243183,17.53103557,189.83,189.78,23.776884]
[1730943243380,17.53103557,189.81,189.75,23.776884]
[1730943243584,17.53103557,189.8,189.75,23.776884]
[1730943244000,17.53103557,189.81,189.75,41.30791957]
[1730943244311,17.53103557,189.81,189.75,23.776884]
[1730943245008,17.53103557,189.82,189.76,17.63103557]
[1730943245183,17.53103557,189.82,189.77,23.776884]
[1730943245380,17.53103557,189.81,189.76,23.776884]
[1730943245692,17.53103557,189.84,189.77,17.63103557]
[1730943245905,17.53103557,189.8,189.76,23.776884]
[1730943246103,17.53103557,189.81,189.76,23.776884]
[1730943246606,17.53103557,189.82,189.76,23.776884]
[1730943246781,17.53103557,189.82,189.77,0.1]
[1730943246982,17.53103557,189.82,189.76,41.40791957]
[1730943247204,17.53103557,189.82,189.77,0.1]
[1730943247419,17.53103557,189.83,189.78,23.776884]
[1730943247983,17.53103557,189.83,189.77,23.876884]
[1730943248185,17.53103557,189.82,189.77,23.876884]
[1730943248489,17.53103557,189.82,189.77,23.776884]
[1730943249494,17.53103557,189.83,189.77,23.776884]
[1730943249804,17.53103557,189.84,189.77,41.30791957]
[1730943250199,17.53103557,189.84,189.79,23.776884]
[1730943250398,17.53103557,189.86,189.79,41.30791957]
[1730943250700,17.65652557,189.86,189.81,23.776884]
[1730943251018,17.53103557,189.85,189.81,23.776884]
[1730943251798,17.53103557,189.82,189.77,20.0]
[1730943251998,17.53103557,189.79,189.73,17.53103557]
[1730943252220,17.53103557,189.78,189.72,17.531035]
[1730943252391,17.53103557,189.76,189.7,16.5227]
[1730943252712,17.53103557,189.76,189.7,51.48477057]
[1730943253008,17.03103557,189.76,189.7,51.48477057]
[1730943253315,17.53103557,189.77,189.71,17.53103557]
[1730943253820,17.53103557,189.76,189.72,23.776884]
[1730943254317,17.53103557,189.78,189.72,23.776884]
[1730943254612,17.53103557,189.77,189.72,23.776884]
[1730943255790,17.53103557,189.78,189.72,23.776884]
[1730943256015,17.53103557,189.77,189.72,23.776884]
[1730943256316,17.53103557,189.76,189.72,23.776884]
[1730943256495,17.53103557,189.76,189.7,41.40791957]
[1730943256696,17.53103557,189.78,189.72,23.776884]
[1730943257297,17.53103557,189.78,189.72,41.30791957]
[1730943257500,17.53103557,189.8,189.74,23.776884]
[1730943258017,17.53103557,189.79,189.74,23.776884]
[1730943258215,17.53103557,189.79,189.73,23.776884]
[1730943258520,17.53103557,189.78,189.73,23.776884]
[1730943258816,17.53103557,189.78,189.72,43.776884]
[1730943259017,17.53103557,189.77,189.72,43.776884]
[1730943259620,17.53103557,189.78,189.71,41.40791957]
[1730943259792,17.53103557,189.78,189.71,41.30791957]
[1730943260107,17.53103557,189.77,189.71,23.776884]
[1730943260310,17.53103557,189.75,189.71,23.776884]
[1730943260513,17.53103557,189.74,189.71,23.776884]
[1730943260713,17.53103557,189.74,189.68,17.53103557]
[1730943260714,17.53103557,189.74,189.68,17.531035]
[1730943260894,17.53103557,189.73,189.67,17.63103557]
[1730943261220,17.53103557,189.74,189.67,17.53103557]
[1730943261516,17.53103557,189.74,189.68,17.53103557]
[1730943261691,17.53103557,189.73,189.67,17.53103557]
[1730943261892,17.53103557,189.74,189.67,17.53103557]
[1730943262094,17.53103557,189.75,189.68,17.53103557]
[1730943262591,17.53103557,189.74,189.67,17.53103557]
[1730943262811,17.53103557,189.74,189.68,23.776884]
[1730943263009,17.53103557,189.73,189.66,17.53103557]
[1730943263218,17.53103557,189.72,189.65,17.63103557]
[1730943263597,17.53103557,189.73,189.66,17.53103557]
[1730943264197,17.53103557,189.73,189.67,17.53103557]
[1730943264510,17.53103557,189.76,189.69,17.53103557]
[1730943264714,17.53103557,189.77,189.71,41.30791957]
[1730943264935,17.53103557,189.78,189.71,41.30791957]
[1730943265217,17.53103557,189.79,189.72,17.63103557]
[1730943265797,17.53103557,189.79,189.73,23.776884]
[1730943266117,17.53103557,189.8,189.73,41.30791957]
[1730943267014,17.53103557,189.81,189.74,17.53103557]
[1730943267206,17.53103557,189.81,189.75,23.776884]
[1730943267524,17.53103557,189.83,189.76,17.53103557]
[1730943267726,17.53103557,189.84,189.78,23.776884]
[1730943268101,17.53103557,189.83,189.78,23.776884]
[1730943268830,17.53103557,189.81,189.75,20.0]
[1730943269037,6.1388,189.88,189.75,37.53103557]
[1730943269038,17.53103557,189.82,189.75,37.53103557]
[1730943269203,17.53103557,189.83,189.76,17.53103557]
[1730943269403,17.53103557,189.82,189.76,23.776884]
[1730943269915,17.53103557,189.83,189.76,41.30791957]
[1730943270429,6.1388,189.88,189.78,23.776884]
[1730943270430,17.53103557,189.84,189.78,23.776884]
[1730943270628,17.53103557,189.86,189.8,23.776884]
[1730943272622,17.53103557,189.85,189.8,23.776884]
[1730943273026,17.53103557,189.83,189.74,0.1]
[1730943273226,17.53103557,189.85,189.78,17.53103557]
[1730943273427,17.53103557,189.85,189.79,17.53103557]
[1730943273923,17.53103557,189.85,189.78,17.53103557]
[1730943274346,17.53103557,189.85,189.79,23.776884]
[1730943274519,17.53103557,189.89,189.82,41.30791957]
[1730943274717,17.53103557,189.88,189.83,23.776884]
[1730943275044,0.12549,189.92,189.82,23.776884]
[1730943275045,17.53103557,189.87,189.82,23.776884]
[1730943275342,17.53103557,189.86,189.81,23.776884]
[1730943275533,17.53103557,189.9,189.83,17.53103557]
[1730943275844,17.53103557,189.92,189.85,17.53103557]
[1730943276345,17.53103557,189.92,189.86,23.776884]
[1730943277027,17.53103557,189.91,189.86,23.776884]
[1730943277840,17.53103557,189.9,189.85,23.776884]
[1730943278318,17.53103557,189.91,189.85,23.776884]
[1730943278933,17.53103557,189.91,189.85,41.30791957]
[1730943279135,17.53103557,189.93,189.86,17.53103557]
[1730943279335,17.53103557,189.9,189.85,23.776884]
[1730943281155,17.53103557,189.93,189.82,0.1]
[1730943281325,17.53103557,189.91,189.85,20.0]
[1730943281526,17.53103557,189.89,189.83,17.53103557]
[1730943281826,17.53103557,189.89,189.84,20.0]
[1730943282025,17.53103557,189.88,189.84,20.0]
[1730943282251,17.53103557,189.88,189.83,20.0]
[1730943282556,17.53103557,189.87,189.79,20.0]
[1730943282755,17.53103557,189.87,189.81,43.776884]
[1730943283160,17.53103557,189.89,189.83,41.30791957]
[1730943283330,17.53103557,189.92,189.86,23.776884]
[1730943283661,6.5325,189.99,189.88,17.53103557]
[1730943283837,17.53103557,190.0,189.94,17.53103557]
[1730943284044,17.53103557,190.0,189.93,17.53103557]
[1730943284226,17.53103557,189.99,189.93,17.53103557]
[1730943284742,16.3375,190.03,189.93,17.53103557]
[1730943284743,17.53103557,190.0,189.93,17.53103557]
[1730943285127,17.53103557,189.99,189.93,17.53103557]
[1730943285425,17.53103557,189.99,189.92,17.53103557]
[1730943285625,17.53103557,189.98,189.93,23.776884]
[1730943286052,17.53103557,189.99,189.93,23.776884]
[1730943286633,17.53103557,190.0,189.94,17.53103557]
[1730943287032,6.4801,190.12,190.0,23.776884]
[1730943287232,17.53103557,190.1,190.03,41.30791957]
[1730943288146,17.53103557,190.1,190.03,17.53103557]
[1730943289225,17.53103557,190.12,190.05,17.53103557]
[1730943289431,17.53103557,190.1,190.05,23.776884]
[1730943289667,17.53103557,190.12,190.05,41.30791957]
[1730943290037,6.638,190.17,190.05,41.30791957]
[1730943290038,17.53103557,190.11,190.05,23.776884]
[1730943290242,17.53103557,190.1,190.04,23.776884]
[1730943290733,17.53103557,190.09,190.02,17.53103557]
[1730943290931,17.53103557,190.08,190.01,17.53103557]
[1730943291129,17.53103557,190.07,190.02,20.0]
[1730943291450,17.53103557,190.05,189.98,17.53103557]
[1730943291651,17.53103557,190.06,189.99,17.53103557]
[1730943291962,17.53103557,190.04,189.97,17.53103557]
[1730943292329,17.53103557,190.03,189.97,17.53103557]
[1730943292635,17.53103557,190.01,189.95,17.53103557]
[1730943293728,17.53103557,190.0,189.95,20.0]
[1730943294235,17.53103557,189.96,189.9,17.531036]
[1730943294448,17.53103557,189.96,189.9,17.53103557]
[1730943294659,0.12549,190.03,189.9,17.53103557]
[1730943294660,17.53103557,189.97,189.9,17.53103557]
[1730943295328,27.99072054,189.97,189.9,27.99072054]
[1730943296748,27.99072054,189.98,189.91,27.99072054]
[1730943296939,27.99072054,189.97,189.9,47.99072054]
[1730943297141,27.99072054,189.96,189.9,47.99072054]
[1730943297767,27.99072054,189.95,189.89,27.99072054]
[1730943298059,27.99072054,189.96,189.9,47.99072054]
[1730943298268,27.99072054,189.96,189.9,27.99072054]
[1730943298444,27.99072054,189.96,189.89,27.99072054]
[1730943298646,27.99072054,189.95,189.89,27.99072054]
[1730943298858,0.12549,190.03,189.87,27.99072054]
[1730943298859,27.99072054,189.94,189.87,27.99072054]
[1730943299157,27.99072054,189.95,189.88,27.99072054]
[1730943299540,27.99072054,189.95,189.89,27.99072054]
[1730943300356,27.99072054,189.95,189.88,47.99072054]
[1730943300536,27.99072054,189.95,189.89,27.99072054]
[1730943300737,27.99072054,189.96,189.89,27.99072054]
[1730943300937,27.99072054,189.95,189.88,27.99072054]
[1730943301756,27.99072054,189.93,189.87,27.99072054]
[1730943301949,27.99072054,189.89,189.83,27.99072054]
[1730943302152,27.99072054,189.87,189.81,27.99072054]
[1730943302489,27.99072054,189.89,189.83,27.99072054]
[1730943302766,6.4717,189.92,189.79,0.1]
[1730943302767,34.46242054,189.92,189.86,27.99072054]
[1730943302945,6.4717,189.92,189.86,27.99072054]
[1730943303141,27.99072054,189.97,189.91,27.99072054]
[1730943303336,27.99072054,189.99,189.92,27.99072054]
[1730943303533,27.99072054,189.99,189.93,27.99072054]
[1730943303741,27.99072054,190.0,189.94,27.99072054]
[1730943303962,27.99072054,190.01,189.95,27.99072054]
[1730943304161,27.99072054,190.0,189.94,27.99072054]
[1730943305366,33.48466253,190.04,189.97,27.99072054]
[1730943305667,27.99072054,190.04,189.97,27.99072054]
[1730943305876,27.99072054,190.02,189.96,27.99072054]
[1730943306173,0.12549,190.06,189.94,27.99072054]
[1730943306378,0.12549,190.06,189.99,27.99072054]
[1730943306546,27.99072054,190.04,189.97,27.99072054]
[1730943306966,27.99072054,190.03,189.96,27.99072054]
[1730943307175,15.0555,190.07,189.96,27.99072054]
[1730943307176,27.99072054,190.02,189.96,27.99072054]
[1730943307483,0.12549,190.06,189.98,27.99072054]
[1730943307484,27.99072054,190.04,189.98,27.99072054]
[1730943307671,5.49167755,190.11,190.03,27.99072054]
[1730943307972,27.99072054,190.09,190.02,27.99072054]
[1730943308268,27.99072054,190.09,189.97,27.99072054]
[1730943308269,27.99072054,190.09,190.03,27.99072054]
[1730943308571,27.99072054,190.08,190.01,27.99072054]
[1730943308779,27.99072054,190.09,190.02,27.99072054]
[1730943309354,0.12549,190.09,190.03,27.99072054]
[1730943309552,34.41872054,190.13,190.07,27.99072054]
[1730943309869,27.99072054,190.15,190.09,27.99072054]
[1730943310078,27.99072054,190.12,190.06,20.0]
[1730943310256,21.5898,190.19,190.06,20.0]
[1730943310454,27.99072054,190.13,190.06,20.0]
[1730943310654,27.99072054,190.13,190.04,23.776884]
[1730943310877,49.68052054,190.19,190.03,47.99072054]
[1730943311078,0.12549,190.18,190.03,20.0]
[1730943311274,27.99072054,190.09,190.03,20.0]
[1730943311862,0.22549,190.18,190.04,27.99072054]
[1730943311863,0.12549,190.18,190.04,27.99072054]
[1730943312066,27.99072054,190.11,190.05,27.99072054]
[1730943312392,27.99072054,190.1,190.03,27.99072054]
[1730943312682,27.99072054,190.09,190.03,27.99072054]
[1730943313072,27.99072054,190.1,190.03,27.99072054]
[1730943313298,27.99072054,190.1,190.04,27.99072054]
[1730943313579,27.99072054,190.12,190.05,27.99072054]
[1730943313779,27.99072054,190.13,190.07,27.99072054]
[1730943314090,28.11621054,190.12,190.05,27.99072054]
[1730943314256,27.99072054,190.11,190.05,27.99072054]
[1730943315382,17.46669561,190.12,190.05,17.46669561]
[1730943315761,16.96669561,190.11,190.04,17.46669561]
[1730943315970,16.41040505,190.11,190.05,20.0]
[1730943316269,17.46669561,190.11,190.05,37.46669561]
[1730943317212,17.46669561,190.12,190.06,17.46669561]
[1730943317355,17.46669561,190.1,190.03,17.46669561]
[1730943317555,17.46669561,190.11,190.05,17.46669561]
[1730943317810,17.46669561,190.1,190.04,17.46669561]
[1730943318154,17.46669561,190.11,190.05,17.46669561]
[1730943318357,0.12549,190.18,190.05,17.46669561]
[1730943318558,17.46669561,190.1,190.04,17.46669561]
[1730943318784,17.46669561,190.07,189.97,21.043194]
[1730943319091,17.46669561,190.07,190.01,17.46669561]
[1730943319385,17.46669561,190.08,190.02,17.46669561]
[1730943319789,17.46669561,190.07,190.01,17.46669561]
[1730943320164,17.46669561,190.06,189.99,17.46669561]
[1730943320563,17.46669561,190.08,190.02,17.46669561]
[1730943320756,17.46669561,190.09,190.03,17.46669561]
[1730943320957,5.48954525,190.17,190.02,0.1]
[1730943321178,17.46669561,190.12,190.06,17.46669561]
[1730943321481,17.46669561,190.11,190.04,17.46669561]
[1730943321686,17.46669561,190.1,190.04,17.46669561]
[1730943322073,17.46669561,190.1,190.03,17.46669561]
[1730943322276,17.46669561,190.12,190.05,17.46669561]
[1730943322501,17.46669561,190.11,190.05,17.46669561]
[1730943322657,17.46669561,190.11,190.04,17.46669561]
[1730943323595,0.12549,190.18,190.04,17.46669561]
[1730943323596,17.46669561,190.1,190.04,17.46669561]
[1730943323996,17.46669561,190.1,189.98,6.6836]
[1730943323997,17.46669561,190.08,190.02,17.46669561]
[1730943324202,17.46669561,190.08,190.02,20.0]
[1730943324773,17.46669561,190.08,190.02,17.46669561]
[1730943325670,27.07874939,190.19,190.05,20.0]
[1730943325874,17.46669561,190.17,190.1,17.46669561]
[1730943326273,21.5898,190.19,190.1,17.46669561]
[1730943326468,17.46669561,190.18,190.12,17.46669561]
[1730943326684,17.46669561,190.19,190.12,17.46669561]
[1730943327298,9.51105524,190.26,190.12,0.1]
[1730943327613,17.46669561,190.27,190.21,17.46669561]
[1730943327773,17.46669561,190.28,190.22,17.46669561]
[1730943328312,17.46669561,190.29,190.23,17.46669561]
[1730943329408,27.89074007,190.31,190.24,27.89074007]
[1730943329581,6.6659,190.34,190.24,27.89074007]
[1730943329582,27.89074007,190.3,190.24,27.89074007]
[1730943329783,27.89074007,190.32,190.24,27.89074007]
[1730943329972,27.89074007,190.33,190.24,27.89074007]
[1730943330267,27.89074007,190.34,190.23,6.2062]
[1730943330472,27.89074007,190.34,190.24,27.89074007]